fUST/lending_fUST_20250530
["ID","MTS","AMOUNT","RATE_DAILY","PERIOD"]
[363149897,1748599855306,-514.63,0.00022191,2]
[363149898,1748599855316,-802.09,0.00022191,2]
[363149899,1748599855325,-1801.05,0.00022191,2]
[363149900,1748599855334,-430.0,0.00022191,2]
[363149901,1748599855343,-657.41,0.00022191,2]
[363149902,1748599855353,-4916.12,0.00022191,2]
[363149903,1748599855362,-430.0,0.00022191,2]
[363149904,1748599855372,-566.9,0.00022191,2]
[363149905,1748599855381,-430.0,0.00022191,2]
[363149906,1748599855391,-6162.88,0.00022191,2]
[363149907,1748599855401,-430.0,0.00022191,2]
[363149908,1748599855410,-625.42,0.00022191,2]
[363149909,1748599855419,-430.0,0.00022191,2]
[363149910,1748599855429,-2321.09,0.00022191,2]
[363149911,1748599855439,-653.47,0.00022191,2]
[363149912,1748599855448,-646.21,0.00022191,2]
[363149913,1748599855457,-430.0,0.00022191,2]
[363149914,1748599855467,-1153.29,0.00022191,2]
[363149915,1748599855476,-887.53,0.00022191,2]
[363149916,1748599855486,-5995.57,0.00022191,2]
[363149917,1748599855495,-1053.86,0.00022191,2]
[363149918,1748599855505,-264.01841697,0.00022191,2]
[363149919,1748599855515,-154.0,0.00022192,7]
[363149920,1748599855525,-587.0,0.0002224,2]
[363149921,1748599855535,-405.0,0.00022296,2]
[363149922,1748599855545,-357.7922574,0.00022314,7]
[363149923,1748599855555,-627.01049061,0.00022365,2]
[363149924,1748599855564,-625.44,0.00022465,2]
[363149925,1748599855573,-430.0,0.00022465,2]
[363149926,1748599855581,-200.0,0.00022465,2]
[363149927,1748599855591,-200.0,0.00022465,2]
[363149928,1748599855600,-200.0,0.00022465,2]
[363149929,1748599855609,-200.0,0.00022465,2]
[363149930,1748599855619,-258.12170651,0.00022465,2]
[363149931,1748599855628,-439.0,0.00022465,2]
[363149932,1748599855638,-430.0,0.00022465,2]
[363149933,1748599855648,-430.0,0.00022465,2]
[363149934,1748599855658,-430.0,0.00022465,2]
[363149935,1748599855668,-1350.74,0.00022465,2]
[363149936,1748599855677,-430.0,0.00022465,2]
[363149937,1748599855687,-430.0,0.00022465,2]
[363149938,1748599855696,-430.0,0.00022465,2]
[363149939,1748599855706,-1255.09,0.00022465,2]
[363149940,1748599855715,-1398.56,0.00022465,2]
[363149941,1748599855725,-442.67,0.00022465,2]
[363149942,1748599855734,-500.0,0.00022465,2]
[363149943,1748599855744,-430.0,0.00022465,2]
[363149944,1748599855754,-453.44,0.00022465,2]
[363149945,1748599855763,-4983.7,0.00022465,2]
[363149946,1748599855773,-907.89,0.00022465,2]
[363149947,1748599855783,-430.0,0.00022465,2]
[363149948,1748599855792,-6118.79,0.00022465,2]
[363149949,1748599855802,-2375.79,0.00022465,2]
[363149950,1748599855811,-451.50273637,0.00022465,2]
[363149951,1748599855820,-1846.32,0.00022465,2]
[363149952,1748599855830,-1005.88,0.00022465,2]
[363149953,1748599855840,-781.05,0.00022465,2]
[363149954,1748599855848,-1557.44,0.00022465,2]
[363149955,1748599855858,-430.0,0.00022465,2]
[363149956,1748599855868,-7162.95,0.00022465,2]
[363149957,1748599855877,-991.03,0.00022465,2]
[363149958,1748599855887,-1880.61,0.00022465,2]
[363149959,1748599855898,-970.64,0.00022465,2]
[363149960,1748599855907,-547.80384565,0.00022465,2]
[363149961,1748599855916,-869.87,0.00022465,2]
[363149962,1748599855927,-430.0,0.00022465,2]
[363149963,1748599855936,-6904.29,0.00022465,2]
[363149964,1748599855946,-2282.62,0.00022465,2]
[363149965,1748599855956,-625.72,0.00022465,2]
[363149966,1748599855966,-430.0,0.00022465,2]
[363149967,1748599855975,-514.63,0.00022465,2]
[363149968,1748599855985,-802.09,0.00022465,2]
[363149969,1748599855994,-1801.05,0.00022465,2]
[363149970,1748599856004,-430.0,0.00022465,2]
[363149971,1748599856014,-657.41,0.00022465,2]
[363149972,1748599856024,-4916.12,0.00022465,2]
[363149973,1748599856034,-430.0,0.00022465,2]
[363149974,1748599856043,-566.9,0.00022465,2]
[363149975,1748599856053,-430.0,0.00022465,2]
[363149976,1748599856062,-6162.88,0.00022465,2]
[363149977,1748599856072,-430.0,0.00022465,2]
[363149978,1748599856081,-625.42,0.00022465,2]
[363149979,1748599856091,-430.0,0.00022465,2]
[363149980,1748599856100,-2321.09,0.00022465,2]
[363149981,1748599856110,-653.47,0.00022465,2]
[363149982,1748599856120,-646.21,0.00022465,2]
[363149983,1748599856129,-430.0,0.00022465,2]
[363149984,1748599856139,-1153.29,0.00022465,2]
[363149985,1748599856148,-887.53,0.00022465,2]
[363149986,1748599856158,-5995.57,0.00022465,2]
[363149987,1748599856168,-1053.86,0.00022465,2]
[363149988,1748599856177,-357.7922574,0.00022486,7]
[363149989,1748599856190,-11531.96868396,0.000225,7]
[363149990,1748599856199,-11531.96868396,0.000225,7]
[363149991,1748599856208,-1000.0,0.00022521,2]
[363149992,1748599856218,-1000.0,0.00022521,2]
[363149993,1748599856228,-1200.0,0.00022521,2]
[363149994,1748599856238,-695.67954702,0.00022521,2]
[363149995,1748599856247,-181.30033025,0.00022558,2]
[363149996,1748599856257,-627.01049054,0.00022604,2]
[363149997,1748599856267,-172.01487286,0.00022639,2]
[363149998,1748599856278,-150.0,0.00022656,2]
[363149999,1748599856287,-150.0,0.00022656,2]
[363150000,1748599856297,-1027.374,0.00022656,2]
[363150001,1748599856306,-708.0,0.00022656,2]
[363150002,1748599856317,-357.7922574,0.00022659,7]
[363150003,1748599856326,-223.0315306,0.00022675,2]
[363150004,1748599856335,-2200.0,0.0002269,2]
[363150005,1748599856344,-625.44,0.00022739,2]
[363150006,1748599856354,-430.0,0.00022739,2]
[363150007,1748599856363,-439.0,0.00022739,2]
[363150008,1748599856373,-430.0,0.00022739,2]
[363150009,1748599856382,-430.0,0.00022739,2]
[363150010,1748599856392,-430.0,0.00022739,2]
[363150011,1748599856401,-1350.74,0.00022739,2]
[363150012,1748599856410,-430.0,0.00022739,2]
[363150013,1748599856419,-430.0,0.00022739,2]
[363150014,1748599856428,-430.0,0.00022739,2]
[363150015,1748599856438,-1255.09,0.00022739,2]
[363150016,1748599856447,-1398.56,0.00022739,2]
[363150017,1748599856456,-442.67,0.00022739,2]
[363150018,1748599856466,-430.0,0.00022739,2]
[363150019,1748599856475,-453.44,0.00022739,2]
[363150020,1748599856485,-4983.7,0.00022739,2]
[363150021,1748599856495,-907.89,0.00022739,2]
[363150022,1748599856503,-430.0,0.00022739,2]
[363150023,1748599856513,-6118.79,0.00022739,2]
[363150024,1748599856522,-2375.79,0.00022739,2]
[363150025,1748599856532,-1846.32,0.00022739,2]
[363150026,1748599856541,-1005.88,0.00022739,2]
[363150027,1748599856551,-781.05,0.00022739,2]
[363150028,1748599856560,-1557.44,0.00022739,2]
[363150029,1748599856569,-430.0,0.00022739,2]
[363150030,1748599856579,-7162.95,0.00022739,2]
[363150031,1748599856588,-991.03,0.00022739,2]
[363150032,1748599856597,-1880.61,0.00022739,2]
[363150033,1748599856607,-970.64,0.00022739,2]
[363150034,1748599856616,-869.87,0.00022739,2]
[363150035,1748599856627,-430.0,0.00022739,2]
[363150036,1748599856636,-6904.29,0.00022739,2]
[363150037,1748599856646,-2282.62,0.00022739,2]
[363150038,1748599856655,-625.72,0.00022739,2]
[363150039,1748599856664,-430.0,0.00022739,2]
[363150040,1748599856674,-514.63,0.00022739,2]
[363150041,1748599856683,-802.09,0.00022739,2]
[363150042,1748599856693,-1801.05,0.00022739,2]
[363150043,1748599856702,-430.0,0.00022739,2]
[363150044,1748599856711,-657.41,0.00022739,2]
[363150045,1748599856721,-4916.12,0.00022739,2]
[363150046,1748599856730,-430.0,0.00022739,2]
[363150047,1748599856740,-566.9,0.00022739,2]
[363150048,1748599856749,-430.0,0.00022739,2]
[363150049,1748599856759,-6162.88,0.00022739,2]
[363150050,1748599856768,-430.0,0.00022739,2]
[363150051,1748599856781,-625.42,0.00022739,2]
[363150052,1748599856918,-430.0,0.00022739,2]
[363150053,1748599856928,-2321.09,0.00022739,2]
[363150054,1748599856937,-653.47,0.00022739,2]
[363150055,1748599856947,-646.21,0.00022739,2]
[363150056,1748599856956,-430.0,0.00022739,2]
[363150057,1748599856967,-1153.29,0.00022739,2]
[363150058,1748599856976,-887.53,0.00022739,2]
[363150059,1748599856987,-5995.57,0.00022739,2]
[363150060,1748599856997,-1053.86,0.00022739,2]
[363150061,1748599857007,-500.0,0.00022756,2]
[363150062,1748599857016,-357.7922574,0.00022831,8]
[363150063,1748599857031,-627.01049054,0.00022843,2]
[363150064,1748599857041,-265.91,0.00022957,2]
[363150065,1748599857050,-446.52346101,0.00022962,2]
[363150066,1748599857060,-158.368211,0.00022986,2]
[363150067,1748599857070,-1000.0,0.00023,2]
[363150068,1748599857079,-171.0,0.00023,7]
[363150069,1748599857090,-357.7922574,0.00023003,8]
[363150070,1748599857099,-625.44,0.00023013,2]
[363150071,1748599857108,-430.0,0.00023013,2]
[363150072,1748599857118,-439.0,0.00023013,2]
[363150073,1748599857128,-430.0,0.00023013,2]
[363150074,1748599857137,-438.58677545,0.00023013,2]
[363150075,1748599857147,-430.0,0.00023013,2]
[363150076,1748599857157,-1350.74,0.00023013,2]
[363150077,1748599857166,-430.0,0.00023013,2]
[363150078,1748599857176,-430.0,0.00023013,2]
[363150079,1748599857186,-430.0,0.00023013,2]
[363150080,1748599857199,-1255.09,0.00023013,2]
[363150081,1748599857209,-1398.56,0.00023013,2]
[363150082,1748599857219,-442.67,0.00023013,2]
[363150083,1748599857228,-500.0,0.00023013,2]
[363150084,1748599857238,-430.0,0.00023013,2]
[363150085,1748599857248,-453.44,0.00023013,2]
[363150086,1748599857258,-4983.7,0.00023013,2]
[363150087,1748599857269,-907.89,0.00023013,2]
[363150088,1748599857281,-430.0,0.00023013,2]
[363150089,1748599857290,-6118.79,0.00023013,2]
[363150090,1748599857299,-2375.79,0.00023013,2]
[363150091,1748599857309,-1846.32,0.00023013,2]
[363150092,1748599857318,-1005.88,0.00023013,2]
[363150093,1748599857328,-781.05,0.00023013,2]
[363150094,1748599857338,-1557.44,0.00023013,2]
[363150095,1748599857347,-430.0,0.00023013,2]
[363150096,1748599857358,-7162.95,0.00023013,2]
[363150097,1748599857367,-991.03,0.00023013,2]
[363150098,1748599857377,-1880.61,0.00023013,2]
[363150099,1748599857386,-970.64,0.00023013,2]
[363150100,1748599857396,-869.87,0.00023013,2]
[363150101,1748599857406,-422.33333466,0.00023013,2]
[363150102,1748599857416,-6904.29,0.00023013,2]
[363150103,1748599857428,-2282.62,0.00023013,2]
[363150104,1748599857438,-625.72,0.00023013,2]
[363150105,1748599857448,-430.0,0.00023013,2]
[363150106,1748599857457,-514.63,0.00023013,2]
[363150107,1748599857467,-802.09,0.00023013,2]
[363150108,1748599857476,-1801.05,0.00023013,2]
[363150109,1748599857486,-430.0,0.00023013,2]
[363150110,1748599857496,-657.41,0.00023013,2]
[363150111,1748599857505,-4916.12,0.00023013,2]
[363150112,1748599857515,-430.0,0.00023013,2]
[363150113,1748599857528,-566.9,0.00023013,2]
[363150114,1748599857538,-430.0,0.00023013,2]
[363150115,1748599857547,-6162.88,0.00023013,2]
[363150116,1748599857557,-430.0,0.00023013,2]
[363150117,1748599857566,-625.42,0.00023013,2]
[363150118,1748599857574,-183.19512777,0.00023013,2]
[363150119,1748599857583,-2321.09,0.00023013,2]
[363150120,1748599857592,-653.47,0.00023013,2]
[363150121,1748599857601,-646.21,0.00023013,2]
[363150122,1748599857611,-430.0,0.00023013,2]
[363150123,1748599857620,-1153.29,0.00023013,2]
[363150124,1748599857630,-887.53,0.00023013,2]
[363150125,1748599857639,-5995.57,0.00023013,2]
[363150126,1748599857647,-1053.86,0.00023013,2]
[363150127,1748599857656,-154.0,0.00023014,7]
[363150128,1748599857665,-1500.0,0.00023068,2]
[363150129,1748599857674,-1500.0,0.00023068,2]
[363150130,1748599857683,-1800.0,0.00023068,2]
[363150131,1748599857691,-627.01049054,0.00023082,2]
[363150132,1748599857701,-357.7922574,0.00023176,8]
[363150133,1748599857710,-7769.3,0.000232,2]
[363150134,1748599857719,-51553.13,0.000232,2]
[363150135,1748599857728,-4499.74,0.000232,7]
[363150136,1748599857737,-625.44,0.00023287,2]
[363150137,1748599857746,-430.0,0.00023287,2]
[363150138,1748599857755,-439.0,0.00023287,2]
[363150139,1748599857764,-430.0,0.00023287,2]
[363150140,1748599857774,-430.0,0.00023287,2]
[363150141,1748599857783,-1350.74,0.00023287,2]
[363150142,1748599857792,-430.0,0.00023287,2]
[363150143,1748599857801,-430.0,0.00023287,2]
[363150144,1748599857809,-430.0,0.00023287,2]
[363150145,1748599857817,-1255.09,0.00023287,2]
[363150146,1748599857827,-1398.56,0.00023287,2]
[363150147,1748599857836,-442.67,0.00023287,2]
[363150148,1748599857845,-463.40906392,0.00023287,2]
[363150149,1748599857855,-453.44,0.00023287,2]
[363150150,1748599857863,-4983.7,0.00023287,2]
[363150151,1748599857872,-907.89,0.00023287,2]
[363150152,1748599857881,-430.0,0.00023287,2]
[363150153,1748599857890,-6118.79,0.00023287,2]
[363150154,1748599857899,-2375.79,0.00023287,2]
[363150155,1748599857908,-1846.32,0.00023287,2]
[363150156,1748599857917,-1005.88,0.00023287,2]
[363150157,1748599857926,-781.05,0.00023287,2]
[363150158,1748599857935,-1557.44,0.00023287,2]
[363150159,1748599857944,-430.0,0.00023287,2]
[363150160,1748599857953,-7162.95,0.00023287,2]
[363150161,1748599857962,-991.03,0.00023287,2]
[363150162,1748599857971,-1880.61,0.00023287,2]
[363150163,1748599857980,-970.64,0.00023287,2]
[363150164,1748599857989,-869.87,0.00023287,2]
[363150165,1748599857998,-6904.29,0.00023287,2]
[363150166,1748599858007,-2282.62,0.00023287,2]
[363150167,1748599858015,-625.72,0.00023287,2]
[363150168,1748599858026,-430.0,0.00023287,2]
[363150169,1748599858035,-514.63,0.00023287,2]
[363150170,1748599858045,-802.09,0.00023287,2]
[363150171,1748599858054,-1801.05,0.00023287,2]
[363150172,1748599858064,-430.0,0.00023287,2]
[363150173,1748599858073,-657.41,0.00023287,2]
[363150174,1748599858083,-4916.12,0.00023287,2]
[363150175,1748599858092,-430.0,0.00023287,2]
[363150176,1748599858102,-566.9,0.00023287,2]
[363150177,1748599858112,-430.0,0.00023287,2]
[363150178,1748599858121,-6162.88,0.00023287,2]
[363150179,1748599858131,-430.0,0.00023287,2]
[363150180,1748599858141,-625.42,0.00023287,2]
[363150181,1748599858150,-2321.09,0.00023287,2]
[363150182,1748599858160,-653.47,0.00023287,2]
[363150183,1748599858169,-646.21,0.00023287,2]
[363150184,1748599858179,-430.0,0.00023287,2]
[363150185,1748599858190,-1153.29,0.00023287,2]
[363150186,1748599858200,-887.53,0.00023287,2]
[363150187,1748599858210,-5995.57,0.00023287,2]
[363150188,1748599858220,-1053.86,0.00023287,2]
[363150189,1748599858231,-627.01049054,0.00023321,2]
[363150190,1748599858240,-357.7922574,0.00023348,9]
[363150191,1748599858249,-357.7922574,0.00023521,9]
[363150192,1748599858259,-627.01049054,0.0002356,2]
[363150193,1748599858270,-151.0,0.00023561,7]
[363150194,1748599858280,-151.0,0.00023561,7]
[363150195,1748599858290,-151.0,0.00023561,7]
[363150196,1748599858299,-151.0,0.00023561,7]
[363150197,1748599858309,-151.0,0.00023561,7]
[363150198,1748599858318,-625.44,0.00023561,2]
[363150199,1748599858327,-430.0,0.00023561,2]
[363150200,1748599858337,-439.0,0.00023561,2]
[363150201,1748599858346,-430.0,0.00023561,2]
[363150202,1748599858355,-430.0,0.00023561,2]
[363150203,1748599858365,-1350.74,0.00023561,2]
[363150204,1748599858375,-430.0,0.00023561,2]
[363150205,1748599858384,-430.0,0.00023561,2]
[363150206,1748599858394,-430.0,0.00023561,2]
[363150207,1748599858404,-1255.09,0.00023561,2]
[363150208,1748599858413,-1398.56,0.00023561,2]
[363150209,1748599858423,-442.67,0.00023561,2]
[363150210,1748599858432,-500.0,0.00023561,2]
[363150211,1748599858442,-453.44,0.00023561,2]
[363150212,1748599858453,-4983.7,0.00023561,2]
[363150213,1748599858462,-907.89,0.00023561,2]
[363150214,1748599858471,-430.0,0.00023561,2]
[363150215,1748599858481,-6118.79,0.00023561,2]
[363150216,1748599858491,-2375.79,0.00023561,2]
[363150217,1748599858500,-1846.32,0.00023561,2]
[363150218,1748599858510,-1005.88,0.00023561,2]
[363150219,1748599858519,-781.05,0.00023561,2]
[363150220,1748599858530,-1557.44,0.00023561,2]
[363150221,1748599858539,-554.60592697,0.00023561,2]
[363150222,1748599858550,-7162.95,0.00023561,2]
[363150223,1748599858560,-991.03,0.00023561,2]
[363150224,1748599858569,-1880.61,0.00023561,2]
[363150225,1748599858579,-970.64,0.00023561,2]
[363150226,1748599858589,-869.87,0.00023561,2]
[363150227,1748599858599,-6904.29,0.00023561,2]
[363150228,1748599858608,-2282.62,0.00023561,2]
[363150229,1748599858617,-625.72,0.00023561,2]
[363150230,1748599858627,-302.85972372,0.00023561,2]
[363150231,1748599858636,-514.63,0.00023561,2]
[363150232,1748599858647,-802.09,0.00023561,2]
[363150233,1748599858656,-1801.05,0.00023561,2]
[363150234,1748599858665,-430.0,0.00023561,2]
[363150235,1748599858674,-657.41,0.00023561,2]
[363150236,1748599858683,-4916.12,0.00023561,2]
[363150237,1748599858692,-430.0,0.00023561,2]
[363150238,1748599858702,-566.9,0.00023561,2]
[363150239,1748599858711,-430.0,0.00023561,2]
[363150240,1748599858721,-6162.88,0.00023561,2]
[363150241,1748599858730,-430.0,0.00023561,2]
[363150242,1748599858739,-625.42,0.00023561,2]
[363150243,1748599858748,-2321.09,0.00023561,2]
[363150244,1748599858758,-653.47,0.00023561,2]
[363150245,1748599858767,-646.21,0.00023561,2]
[363150246,1748599858778,-430.0,0.00023561,2]
[363150247,1748599858788,-1153.29,0.00023561,2]
[363150248,1748599858798,-887.53,0.00023561,2]
[363150249,1748599858809,-5995.57,0.00023561,2]
[363150250,1748599858818,-1053.86,0.00023561,2]
[363150251,1748599858827,-2000.0,0.00023616,2]
[363150252,1748599858836,-1340.33271376,0.00023616,2]
[363150253,1748599858846,-2400.0,0.00023616,2]
[363150254,1748599858855,-3789.3946,0.00023649,15]
[363150255,1748599858865,-357.7922574,0.00023693,9]
[363150256,1748599858874,-446.52346101,0.00023739,2]
[363150257,1748599858883,-627.01049054,0.00023799,2]
[363150258,1748599858892,-2000.0,0.000238,2]
[363150259,1748599858902,-151.0,0.00023835,7]
[363150260,1748599858911,-152.402383,0.00023835,7]
[363150261,1748599858920,-158.806229,0.00023835,7]
[363150262,1748599858930,-151.0,0.00023835,7]
[363150263,1748599858939,-625.44,0.00023835,2]
[363150264,1748599858949,-430.0,0.00023835,2]
[363150265,1748599858958,-439.0,0.00023835,2]
[363150266,1748599858967,-445.03583784,0.00023835,2]
[363150267,1748599858978,-430.0,0.00023835,2]
[363150268,1748599858987,-1350.74,0.00023835,2]
[363150269,1748599858997,-430.0,0.00023835,2]
[363150270,1748599859006,-430.0,0.00023835,2]
[363150271,1748599859016,-430.0,0.00023835,2]
[363150272,1748599859027,-1255.09,0.00023835,2]
[363150273,1748599859036,-1398.56,0.00023835,2]
[363150274,1748599859046,-442.67,0.00023835,2]
[363150275,1748599859056,-453.44,0.00023835,2]
[363150276,1748599859066,-4983.7,0.00023835,2]
[363150277,1748599859075,-907.89,0.00023835,2]
[363150278,1748599859085,-430.0,0.00023835,2]
[363150279,1748599859094,-6118.79,0.00023835,2]
[363150280,1748599859104,-2375.79,0.00023835,2]
[363150281,1748599859113,-1846.32,0.00023835,2]
[363150282,1748599859123,-1005.88,0.00023835,2]
[363150283,1748599859132,-781.05,0.00023835,2]
[363150284,1748599859141,-1557.44,0.00023835,2]
[363150285,1748599859151,-7162.95,0.00023835,2]
[363150286,1748599859160,-991.03,0.00023835,2]
[363150287,1748599859170,-1880.61,0.00023835,2]
[363150288,1748599859180,-970.64,0.00023835,2]
[363150289,1748599859192,-869.87,0.00023835,2]
[363150290,1748599859202,-6904.29,0.00023835,2]
[363150291,1748599859210,-2282.62,0.00023835,2]
[363150292,1748599859219,-625.72,0.00023835,2]
[363150293,1748599859228,-514.63,0.00023835,2]
[363150294,1748599859238,-802.09,0.00023835,2]
[363150295,1748599859246,-1801.05,0.00023835,2]
[363150296,1748599859255,-359.37594224,0.00023835,2]
[363150297,1748599859264,-657.41,0.00023835,2]
[363150298,1748599859276,-4916.12,0.00023835,2]
[363150299,1748599859285,-430.0,0.00023835,2]
[363150300,1748599859294,-566.9,0.00023835,2]
[363150301,1748599859303,-462.42174846,0.00023835,2]
[363150302,1748599859313,-6162.88,0.00023835,2]
[363150303,1748599859323,-430.0,0.00023835,2]
[363150304,1748599859332,-625.42,0.00023835,2]
[363150305,1748599859342,-2321.09,0.00023835,2]
[363150306,1748599859352,-653.47,0.00023835,2]
[363150307,1748599859362,-646.21,0.00023835,2]
[363150308,1748599859371,-430.0,0.00023835,2]
[363150309,1748599859380,-1153.29,0.00023835,2]
[363150310,1748599859390,-887.53,0.00023835,2]
[363150311,1748599859399,-5995.57,0.00023835,2]
[363150312,1748599859408,-1053.86,0.00023835,2]
[363150313,1748599859417,-500.0,0.00023852,2]
[363150314,1748599859426,-357.7922574,0.00023866,10]
[363150315,1748599859435,-815.883982,0.00023895,3]
[363150316,1748599859445,-1111.03,0.000239,7]
[363150317,1748599859454,-105874.73,0.000239,7]
[363150318,1748599859463,-158.28,0.00024,2]
[363150319,1748599859472,-158.28,0.00024,2]
[363150320,1748599859482,-160.0,0.00024,7]
[363150321,1748599859491,-160.0,0.00024,7]
[363150322,1748599859500,-229.30959854,0.00024,7]
[363150323,1748599859510,-423.39538199,0.00024,7]
[363150324,1748599859519,-357.7922574,0.00024038,10]
[363150325,1748599859531,-627.01049054,0.00024038,2]
[363150326,1748599859540,-231.28369723,0.00024044,2]
[363150327,1748599859549,-200.0,0.0002407,9]
[363150328,1748599859559,-625.44,0.00024109,2]
[363150329,1748599859568,-410.83334353,0.00024109,2]
[363150330,1748599859577,-439.0,0.00024109,2]
[363150331,1748599859587,-430.0,0.00024109,2]
[363150332,1748599859596,-1350.74,0.00024109,2]
[363150333,1748599859605,-430.0,0.00024109,2]
[363150334,1748599859614,-414.8010081,0.00024109,2]
[363150335,1748599859623,-430.0,0.00024109,2]
[363150336,1748599859633,-1255.09,0.00024109,2]
[363150337,1748599859643,-1398.56,0.00024109,2]
[363150338,1748599859653,-442.67,0.00024109,2]
[363150339,1748599859662,-500.0,0.00024109,2]
[363150340,1748599859671,-453.44,0.00024109,2]
[363150341,1748599859680,-4983.7,0.00024109,2]
[363150342,1748599859689,-907.89,0.00024109,2]
[363150343,1748599859699,-430.0,0.00024109,2]
[363150344,1748599859708,-6118.79,0.00024109,2]
[363150345,1748599859717,-2375.79,0.00024109,2]
[363150346,1748599859726,-187.605,0.00024109,2]
[363150347,1748599859735,-1846.32,0.00024109,2]
[363150348,1748599859744,-1005.88,0.00024109,2]
[363150349,1748599859753,-781.05,0.00024109,2]
[363150350,1748599859763,-1557.44,0.00024109,2]
[363150351,1748599859773,-7162.95,0.00024109,2]
[363150352,1748599859782,-991.03,0.00024109,2]
[363150353,1748599859792,-1880.61,0.00024109,2]
[363150354,1748599859801,-970.64,0.00024109,2]
[363150355,1748599859810,-869.87,0.00024109,2]
[363150356,1748599859820,-6904.29,0.00024109,2]
[363150357,1748599859830,-2282.62,0.00024109,2]
[363150358,1748599859839,-625.72,0.00024109,2]
[363150359,1748599859848,-514.63,0.00024109,2]
[363150360,1748599859857,-802.09,0.00024109,2]
[363150361,1748599859867,-1801.05,0.00024109,2]
[363150362,1748599859876,-657.41,0.00024109,2]
[363150363,1748599859885,-4916.12,0.00024109,2]
[363150364,1748599859894,-430.0,0.00024109,2]
[363150365,1748599859904,-566.9,0.00024109,2]
[363150366,1748599860041,-6162.88,0.00024109,2]
[363150367,1748599860052,-430.0,0.00024109,2]
[363150368,1748599860063,-625.42,0.00024109,2]
[363150369,1748599860072,-2321.09,0.00024109,2]
[363150370,1748599860082,-653.47,0.00024109,2]
[363150371,1748599860091,-646.21,0.00024109,2]
[363150372,1748599860101,-349.70225268,0.00024109,2]
[363150373,1748599860110,-1153.29,0.00024109,2]
[363150374,1748599860120,-887.53,0.00024109,2]
[363150375,1748599860130,-5995.57,0.00024109,2]
[363150376,1748599860139,-1053.86,0.00024109,2]
[363150377,1748599860149,-500.0,0.0002416,2]
[363150378,1748599860159,-500.0,0.0002416,2]
[363150379,1748599860169,-500.0,0.0002416,2]
[363150380,1748599860179,-172.0,0.00024164,7]
[363150381,1748599860192,-2500.0,0.00024164,2]
[363150382,1748599860202,-3000.0,0.00024164,2]
[363150383,1748599860211,-156.0,0.00024164,7]
[363150384,1748599860221,-357.7922574,0.0002421,10]
[363150385,1748599860230,-823.0,0.00024248,2]
[363150386,1748599860241,-627.01049054,0.00024277,2]
[363150387,1748599860250,-10000.0,0.000243,30]
[363150388,1748599860259,-12663.11115519,0.000243,30]
[363150389,1748599860269,-357.7922574,0.00024383,11]
[363150390,1748599860280,-625.44,0.00024383,2]
[363150391,1748599860290,-439.0,0.00024383,2]
[363150392,1748599860299,-430.0,0.00024383,2]
[363150393,1748599860308,-1350.74,0.00024383,2]
[363150394,1748599860317,-430.0,0.00024383,2]
[363150395,1748599860327,-430.0,0.00024383,2]
[363150396,1748599860336,-1255.09,0.00024383,2]